bitfinex/quotes_ETHUSD_20260202
["timestamp","ask_amount","ask_price","bid_price","bid_amount"]
[1770005763068,12.74280107,2221.0,2219.9,0.001]
[1770005764200,0.945,2221.2,2219.6,0.001]
[1770005764201,12.84520107,2220.9,2219.6,0.001]
[1770005764574,12.84520107,2220.9,2218.7,13.95008994]
[1770005764575,12.74280107,2220.3,2218.7,0.50217947]
[1770005764799,12.84520107,2220.0,2217.8,9.24611729]
[1770005764991,12.84520107,2220.0,2217.7,17.3013527]
[1770005764992,1.28452011,2219.9,2217.7,17.3013527]
[1770005765404,1.28452011,2219.9,2217.7,13.44791047]
[1770005765583,12.84520107,2219.8,2217.7,13.44791047]
[1770005766285,1.28452011,2219.9,2218.1,13.44791047]
[1770005766515,0.945,2220.2,2218.5,13.44791047]
[1770005766680,12.74280107,2220.8,2218.8,14.39391047]
[1770005766885,0.945,2221.2,2218.8,14.39391047]
[1770005767081,0.945,2221.2,2218.8,0.946]
[1770005767082,0.1024,2220.9,2218.8,0.946]
[1770005767310,0.1024,2220.7,2218.8,0.946]
[1770005767492,1.38692011,2220.7,2218.8,14.39391047]
[1770005767690,0.945,2221.2,2219.0,13.91835803]
[1770005768215,0.1024,2221.1,2219.0,13.91835803]
[1770005768511,12.6351071,2221.7,2219.3,0.2335703]
[1770005768714,12.6351071,2221.7,2219.4,13.91835803]
[1770005768928,0.1024,2221.6,2219.4,13.91835803]
[1770005769091,1.37615071,2221.6,2219.6,13.91835803]
[1770005769288,0.0011,2221.7,2219.8,13.91835803]
[1770005769492,0.0011,2221.7,2220.0,13.91835803]
[1770005769741,0.0011,2221.7,2220.3,9.76522246]
[1770005769898,0.0011,2222.7,2220.7,13.91835803]
[1770005770440,0.0011,2222.7,2221.1,13.91835803]
[1770005770732,0.0011,2222.7,2221.3,13.91835803]
[1770005770893,0.0011,2222.7,2221.2,0.945]
[1770005771093,0.0011,2222.7,2221.2,14.86335803]
[1770005771295,0.0011,2222.7,2221.4,13.91835803]
[1770005772323,0.0011,2223.6,2221.6,13.91835803]
[1770005772618,0.0011,2223.6,2222.0,13.91835803]
[1770005772829,0.0011,2223.6,2222.3,13.91835803]
[1770005773022,12.6340071,2224.8,2221.7,0.1024]
[1770005773023,12.6340071,2224.8,2222.5,13.91835803]
[1770005773188,12.6340071,2224.8,2222.6,14.15192833]
[1770005773392,12.6340071,2224.8,2222.6,13.91835803]
[1770005773939,0.1024,2224.3,2222.7,0.945]
[1770005774414,0.0011,2223.6,2222.3,0.945]
[1770005775190,0.0011,2223.6,2222.3,14.86335803]
[1770005775950,0.36955811,2224.4,2222.5,13.91835803]
[1770005776617,0.36955811,2224.4,2222.7,13.91835803]
[1770005776808,0.36955811,2224.4,2222.8,13.91835803]
[1770005777420,0.36955811,2224.4,2222.4,14.15192833]
[1770005777795,0.36955811,2224.4,2222.7,13.91835803]
[1770005778138,0.1024,2225.0,2222.7,13.91835803]
[1770005778700,0.1024,2225.0,2222.3,0.945]
[1770005778701,12.6340071,2225.1,2223.1,13.91835803]
[1770005779021,0.945,2225.8,2223.3,13.91835803]
[1770005779022,12.6340071,2225.7,2223.3,13.91835803]
[1770005779225,12.6340071,2225.7,2223.6,13.91835803]
[1770005779226,1.35790071,2225.6,2223.6,13.91835803]
[1770005779423,13.99190781,2225.6,2223.2,14.9633]
[1770005779724,12.6340071,2225.1,2223.3,0.944]
[1770005780225,0.1024,2225.4,2223.3,0.944]
[1770005780437,12.7364071,2225.4,2223.3,0.944]
[1770005780736,1.59154873,2225.6,2223.3,0.944]
[1770005780737,12.7364071,2225.2,2223.3,0.944]
[1770005782207,1.27364071,2225.3,2223.3,0.944]
[1770005782508,0.1024,2225.5,2223.4,13.91835803]
[1770005783122,12.7364071,2225.5,2223.3,0.944]
[1770005783315,12.96991048,2225.5,2223.3,0.944]
[1770005783832,12.7364071,2225.5,2223.3,0.944]
[1770005784021,1.35790071,2225.6,2223.5,13.91835803]
[1770005784209,12.6340071,2225.8,2223.5,13.91835803]
[1770005784409,12.6340071,2225.6,2223.5,13.91835803]
[1770005784921,0.1024,2225.8,2223.6,14.15192833]
[1770005785517,0.0011,2225.9,2224.0,14.15192833]
[1770005785715,0.0011,2225.9,2224.2,14.15192833]
[1770005785952,0.0011,2225.9,2224.4,0.2335703]
[1770005786146,0.0011,2225.3,2224.4,13.91835803]
[1770005786453,0.0011,2225.9,2224.4,13.91835803]
[1770005786604,0.0011,2225.5,2224.6,13.91835803]
[1770005786803,0.0011,2225.9,2224.6,13.91835803]
[1770005787620,0.0011,2225.9,2224.3,0.944]
[1770005788124,0.0011,2225.9,2224.3,14.86235803]
[1770005788461,0.0011,2226.1,2224.9,13.91835803]
[1770005788747,0.0011,2226.1,2224.8,0.3359703]
[1770005788748,0.0011,2226.4,2224.8,13.91835803]
[1770005789465,0.0011,2226.4,2224.3,14.86235803]
[1770005789753,0.0011,2226.4,2224.4,13.91835803]
[1770005789960,0.1024,2226.3,2224.4,13.91835803]
[1770005790262,12.6340071,2226.3,2224.3,0.944]
[1770005791041,0.0011,2226.4,2224.4,13.91835803]
[1770005791548,0.0011,2226.4,2224.3,0.944]
[1770005791549,12.7364071,2226.3,2224.3,0.944]
[1770005791747,1.27375071,2226.2,2224.3,0.944]
[1770005791949,1.27375071,2226.2,2224.3,14.86235803]
[1770005792274,0.0011,2226.4,2224.5,13.91835803]
[1770005792757,12.6351071,2226.4,2224.3,0.944]
[1770005793262,12.6340071,2225.9,2224.3,0.944]
[1770005793460,12.96832796,2226.4,2224.3,0.944]
[1770005794059,12.6351071,2226.4,2224.3,14.86235803]
[1770005794285,0.0011,2226.4,2224.7,13.91835803]
[1770005794563,0.0011,2227.0,2225.3,13.91835803]
[1770005794765,0.0011,2227.0,2225.4,14.86135803]
[1770005794971,0.0011,2227.0,2225.4,0.943]
[1770005796003,12.6340071,2226.9,2225.4,0.943]
[1770005796188,13.89751781,2226.8,2225.4,0.943]
[1770005796340,12.7364071,2226.7,2224.3,13.91835803]
[1770005796665,12.7364071,2226.7,2224.0,9.86762246]
[1770005796666,12.7364071,2226.7,2224.4,14.86135803]
[1770005797476,12.6340071,2226.7,2224.6,13.91835803]
[1770005797970,12.88351869,2226.6,2224.4,0.943]
[1770005798191,0.1024,2226.4,2224.4,14.72338214]
[1770005798663,12.88351869,2226.4,2224.4,0.943]
[1770005799057,0.1024,2225.9,2224.4,0.943]
[1770005799258,12.78111869,2225.9,2224.4,0.943]
[1770005799456,12.88351869,2225.7,2224.4,0.943]
[1770005799656,1.28835187,2225.6,2224.4,0.943]
[1770005800173,0.1024,2225.5,2224.4,0.943]
[1770005800347,12.88351869,2225.5,2224.4,0.943]
[1770005800550,12.88351869,2225.5,2224.5,0.001]
[1770005801054,1.28835187,2225.6,2224.5,0.001]
[1770005801269,12.78111869,2226.0,2224.5,0.001]
[1770005801436,0.943,2226.1,2224.5,0.001]
[1770005802039,12.78221869,2227.0,2224.5,13.78138214]
[1770005802463,0.1024,2226.5,2224.5,13.78138214]
[1770005802891,0.1024,2226.5,2224.6,0.943]
[1770005803560,0.1024,2226.4,2224.6,0.943]
[1770005803762,14.17187056,2226.4,2224.6,0.943]
[1770005804405,1.28835187,2226.4,2224.6,0.943]
[1770005804572,0.1035,2226.8,2224.6,0.943]
[1770005804895,12.88461869,2226.8,2224.6,0.943]
[1770005805210,12.88351869,2226.5,2224.6,0.943]
[1770005805566,0.0011,2226.8,2224.6,14.72338214]
[1770005805896,0.1024,2226.7,2224.6,14.72338214]
[1770005806061,1.40612459,2226.7,2224.6,14.72338214]
[1770005806264,0.0513272,2226.8,2224.7,13.78038214]
[1770005806595,0.0513272,2226.8,2225.4,13.78038214]
[1770005806777,0.0513272,2226.8,2225.5,14.72338214]
[1770005806979,0.0513272,2226.8,2225.6,12.87522978]
[1770005807181,0.0513272,2226.8,2225.5,0.943]
[1770005807573,0.0513272,2226.8,2225.5,17.67167201]
[1770005807762,0.0513272,2226.8,2225.6,12.87522978]
[1770005808466,0.0011,2227.7,2225.9,12.87522978]
[1770005808699,0.0011,2227.7,2226.1,12.87522978]
[1770005809006,12.79423007,2229.3,2227.0,12.87522978]
[1770005809185,14.07365308,2229.2,2227.1,0.943]
[1770005809594,12.79423007,2228.9,2227.1,0.943]
[1770005809765,12.79423007,2228.8,2227.1,0.943]
[1770005810166,12.79423007,2229.1,2227.1,0.943]
[1770005810899,12.79423007,2229.1,2227.1,13.81822978]
[1770005811065,1.40736531,2229.0,2227.1,13.81822978]
[1770005811268,12.79423007,2229.6,2227.1,13.81822978]
[1770005811466,12.79423007,2229.6,2227.2,12.87522978]
[1770005811890,0.1024,2229.5,2227.2,12.87522978]
[1770005812196,12.79423007,2229.6,2227.2,12.87522978]
[1770005812593,0.1024,2229.5,2227.2,12.87522978]
[1770005812791,14.28059308,2229.5,2227.2,12.87522978]
[1770005813005,0.0011,2228.6,2227.2,12.87522978]
[1770005813192,0.0011,2228.6,2227.1,0.943]
[1770005813377,0.0011,2228.6,2227.1,13.81822978]
[1770005815472,1.38396301,2229.5,2227.6,12.87522978]
[1770005815782,1.38396301,2229.5,2227.3,0.1024]
[1770005815783,12.79533007,2229.7,2227.8,12.87522978]
[1770005816189,0.0011,2229.7,2228.0,12.87522978]
[1770005816397,0.0011,2229.7,2227.7,0.2335703]
[1770005816398,0.0011,2229.7,2228.2,12.87522978]
[1770005817195,0.0011,2229.7,2228.3,13.10880008]
[1770005817401,0.0011,2229.7,2228.1,0.942]
[1770005817583,0.0011,2229.7,2228.1,13.81722978]
[1770005817802,0.0011,2229.7,2228.3,13.10880008]
[1770005817990,0.1225112,2230.2,2228.5,13.10880008]
[1770005818172,0.1225112,2230.2,2228.6,12.87522978]
[1770005818372,0.1225112,2230.2,2228.7,12.87522978]
[1770005819099,0.1225112,2230.2,2229.0,13.10880008]
[1770005819399,0.1225112,2230.2,2229.0,0.1024]
[1770005819800,0.1225112,2230.2,2229.1,13.10880008]
[1770005820004,12.79423007,2231.3,2229.1,13.10880008]
[1770005820209,12.79423007,2231.3,2228.7,13.81722978]
[1770005820393,0.1024,2231.2,2228.9,12.87522978]
[1770005820579,12.79423007,2231.4,2229.2,12.87522978]
[1770005820781,12.79423007,2232.0,2229.5,12.87522978]
[1770005820976,13.91431207,2232.0,2229.6,0.942]
[1770005821171,13.91431207,2232.0,2228.8,10.08792617]
[1770005821172,12.79423007,2231.2,2228.8,10.08792617]
[1770005821372,12.79423007,2230.9,2228.9,0.942]
[1770005821583,1.27942301,2230.8,2228.9,0.942]
[1770005821787,12.89663007,2230.7,2228.9,0.942]
[1770005822007,12.89663007,2230.1,2227.8,14.0193]
[1770005822176,13.83863007,2230.1,2227.8,14.0193]
[1770005822375,12.89663007,2230.1,2227.7,12.87522978]
[1770005822698,1.28966301,2230.0,2227.9,12.87522978]
[1770005822891,0.1024,2230.1,2227.9,12.87522978]
[1770005823104,12.79423007,2230.4,2228.0,0.2335703]
[1770005823315,0.1024,2230.3,2228.0,13.10880008]
[1770005823526,12.79423007,2230.4,2228.3,13.10880008]
[1770005823811,12.89663007,2230.5,2228.3,12.87522978]
[1770005824116,0.1024,2230.2,2227.8,26.89452978]
[1770005824329,1.31302004,2230.4,2228.2,10.08792617]
[1770005824624,12.79423007,2230.7,2228.5,13.10880008]
[1770005824792,1.27942301,2230.8,2228.4,0.1024]
[1770005824793,1.27942301,2230.8,2228.9,12.87522978]
[1770005824980,0.70415728,2231.8,2230.0,12.87522978]
[1770005825211,12.79423007,2232.9,2230.5,23.06555595]
[1770005825406,0.7036124,2233.3,2230.8,12.87522978]
[1770005825734,0.7036124,2233.3,2230.5,10.52566531]
[1770005825735,0.1024,2232.9,2230.5,10.52566531]
[1770005825876,12.89663007,2232.5,2230.6,1.05256653]
[1770005826084,0.0011,2230.6,2230.1,0.942]
[1770005826387,0.1024,2231.7,2230.1,0.942]
[1770005826577,0.0011,2230.8,2230.1,0.942]
[1770005826774,0.1024,2232.3,2230.1,0.942]
[1770005827004,12.79423007,2232.4,2230.2,13.10880008]
[1770005827208,0.59312077,2234.2,2230.2,13.10880008]
[1770005827209,1.27942301,2232.3,2230.2,13.10880008]
[1770005827515,12.79423007,2233.6,2231.3,0.1024]
[1770005827717,13.57906517,2234.1,2231.8,12.626161]
[1770005827880,13.57906517,2234.1,2231.4,0.941]
[1770005828215,13.57906517,2233.3,2230.6,13.567161]
[1770005828514,13.57906517,2233.3,2230.6,0.941]
[1770005828515,13.68146517,2232.8,2230.6,0.941]
[1770005828715,13.68146517,2232.6,2230.6,0.941]
[1770005829377,13.57906517,2232.6,2230.6,0.941]
[1770005830010,1.36814652,2232.7,2230.6,13.567161]
[1770005830182,0.2335703,2233.0,2230.6,0.941]
[1770005830506,0.941,2233.2,2230.6,0.941]
[1770005830507,13.68146517,2232.9,2230.6,0.941]
[1770005830909,13.68146517,2232.9,2230.6,13.567161]
[1770005831312,13.68146517,2232.9,2230.6,0.941]
[1770005831611,13.57906517,2232.5,2230.6,0.941]
[1770005831815,13.68146517,2232.3,2230.6,0.941]
[1770005831983,13.57906517,2232.3,2230.6,0.941]
[1770005832182,1.38126355,2232.4,2230.6,0.941]
[1770005832402,13.57906517,2234.1,2230.9,0.2335703]
[1770005832733,13.57906517,2234.1,2231.1,12.8597313]
[1770005832902,13.57906517,2234.1,2230.9,10.08792617]
[1770005833104,2.42455575,2234.2,2230.6,0.941]
[1770005833105,13.81263547,2233.3,2230.7,0.1024]
[1770005833301,13.81263547,2233.3,2231.0,14.5]
[1770005833302,13.57906517,2232.9,2231.0,14.5]
[1770005833554,0.1024,2232.6,2231.0,14.5]
[1770005833833,13.68146517,2232.6,2230.6,0.941]
[1770005834697,13.68146517,2232.4,2230.6,0.941]
[1770005835538,13.68146517,2232.3,2230.6,0.941]
[1770005836099,13.68146517,2232.7,2230.6,0.941]
[1770005836432,13.68146517,2232.5,2230.6,0.941]
[1770005836746,13.57906517,2232.5,2230.7,14.5]
[1770005836902,1.50496117,2232.6,2230.7,14.5]
[1770005837265,0.941,2233.2,2230.8,12.8597313]
[1770005837401,13.57906517,2233.5,2231.0,12.8597313]
[1770005837600,13.57906517,2233.5,2230.6,0.941]
[1770005837601,13.57906517,2233.3,2230.6,0.941]
[1770005837913,13.57906517,2232.7,2230.7,14.5]
[1770005838114,13.68146517,2232.6,2230.7,14.5]
[1770005838445,1.46224652,2232.5,2230.6,13.567161]
[1770005838600,13.57906517,2233.2,2230.5,0.53860581]
[1770005838801,13.57906517,2232.3,2229.4,16.47960323]
[1770005839030,0.0011,2232.6,2229.7,12.626161]
[1770005839231,1.35911652,2232.6,2230.3,12.626161]
[1770005839433,0.1024,2232.5,2230.4,0.941]
[1770005839947,13.68146517,2232.5,2230.4,0.941]
[1770005840118,13.57906517,2232.5,2230.4,0.941]
[1770005840320,13.57906517,2232.5,2230.5,14.5]
[1770005840521,1.49381817,2232.4,2230.5,14.5]
[1770005840949,1.49381817,2232.4,2230.4,0.941]
[1770005840950,13.57906517,2232.2,2230.4,0.941]
[1770005841120,13.68146517,2232.1,2229.8,14.0193]
[1770005841316,13.68146517,2232.1,2229.8,0.941]
[1770005841652,13.57906517,2231.4,2229.8,0.941]
[1770005841951,14.52006517,2231.3,2229.2,0.941]
[1770005842248,14.94721169,2232.0,2229.3,12.728561]
[1770005842434,13.68146517,2231.9,2229.3,12.728561]
[1770005842837,13.68146517,2231.9,2229.3,12.626161]
[1770005843052,13.57906517,2231.5,2229.3,12.626161]
[1770005843251,13.57906517,2231.5,2229.2,15.441]
[1770005843821,13.57906517,2231.5,2229.3,12.626161]
[1770005844158,13.57906517,2231.5,2229.5,0.1024]
[1770005844337,13.57906517,2231.5,2229.3,12.626161]
[1770005844646,1.45200652,2231.4,2229.3,12.626161]
[1770005844854,1.45200652,2231.4,2229.4,12.8597313]
[1770005845022,1.45200652,2231.4,2229.5,0.2335703]
[1770005845221,1.45200652,2231.4,2229.4,12.626161]
[1770005845555,1.45200652,2231.4,2229.6,12.626161]
[1770005845723,1.49381817,2232.4,2229.9,12.8597313]
[1770005845922,1.49381817,2232.4,2230.1,0.2335703]
[1770005846130,0.1024,2232.3,2230.2,14.5]
[1770005846351,13.68146517,2232.3,2230.2,14.5]
[1770005846534,1.51752833,2232.2,2230.2,14.5]
[1770005846944,13.57906517,2231.8,2230.0,0.941]
[1770005847141,13.68146517,2231.6,2230.0,0.941]
[1770005847454,0.1024,2231.9,2230.0,0.941]
[1770005847630,13.57906517,2232.1,2230.0,13.567161]
[1770005847952,15.08872452,2232.0,2230.0,0.941]
[1770005848564,13.57906517,2231.8,2230.0,0.941]
[1770005848853,13.57906517,2231.4,2229.6,14.5]
[1770005849052,13.57906517,2231.9,2229.6,14.5]
[1770005849350,13.57906517,2231.9,2229.7,0.1024]
[1770005849653,1.50887245,2231.8,2229.8,12.8597313]
[1770005849954,1.50887245,2231.8,2229.9,14.5]
[1770005850637,0.1024,2232.5,2230.0,16.47960323]
[1770005850838,13.68146517,2232.5,2230.1,13.567161]
[1770005851351,13.57906517,2232.1,2230.1,0.941]
[1770005851537,13.57906517,2231.9,2230.1,0.941]
[1770005851959,13.68146517,2231.8,2229.5,0.941]
[1770005852130,13.68146517,2231.4,2229.6,0.47944422]
[1770005852327,13.68146517,2231.4,2229.6,14.5]
[1770005852521,13.68146517,2231.4,2229.5,0.941]
[1770005852522,14.52006517,2231.3,2229.5,0.941]
[1770005852724,13.68146517,2231.2,2229.5,0.941]
[1770005852949,13.68146517,2231.2,2229.1,0.001]
[1770005853149,13.68146517,2230.9,2229.1,0.001]
[1770005853354,13.68146517,2230.7,2229.1,0.001]
[1770005853560,13.68146517,2230.5,2229.1,0.001]
[1770005853930,13.68146517,2230.5,2228.9,0.001]
[1770005855438,13.68146517,2230.3,2228.0,4.79544223]
[1770005855672,0.941,2230.6,2228.0,0.942]
[1770005855673,13.57906517,2229.9,2228.0,0.942]
[1770005855852,1.35790652,2229.8,2228.0,0.942]
[1770005856052,0.941,2229.9,2228.0,0.942]
[1770005856250,13.57906517,2230.5,2228.1,12.626161]
[1770005856456,1.0434,2230.4,2228.2,12.626161]
[1770005857077,1.0434,2230.4,2227.8,0.1024]
[1770005857078,13.57906517,2229.9,2226.4,12.74438066]
[1770005857380,0.3359703,2228.8,2227.0,0.001]
[1770005857542,13.57906517,2228.9,2227.0,0.001]
[1770005857737,0.1024,2229.3,2227.0,0.942]
[1770005857966,0.2335703,2229.6,2227.0,0.942]
[1770005857967,0.1024,2229.1,2227.3,13.65526527]
[1770005858178,0.1024,2229.1,2227.3,0.001]
[1770005858351,0.1024,2228.5,2227.3,0.001]
[1770005858668,0.941,2228.4,2227.0,0.001]
[1770005859175,13.83227095,2228.3,2226.0,0.941]
[1770005859779,0.1024,2228.1,2226.0,0.941]
[1770005859963,1.55637007,2228.1,2226.0,0.941]
[1770005860273,0.1024,2227.9,2226.0,0.941]
[1770005860769,0.2335703,2227.8,2226.0,0.941]
[1770005860970,1.1745703,2227.8,2226.0,0.941]
[1770005861266,0.1024,2227.7,2226.0,0.941]
[1770005861441,1.0434,2227.7,2226.0,0.941]
[1770005861641,0.941,2227.6,2226.0,0.941]
[1770005862069,0.1024,2227.5,2226.0,0.941]
[1770005862677,0.941,2227.4,2225.7,13.65426527]
[1770005863176,0.2335703,2227.7,2225.7,13.65426527]
[1770005863352,0.1024,2227.6,2225.7,13.65426527]
[1770005863936,1.0434,2227.6,2225.7,13.65426527]
[1770005864665,13.49630065,2228.0,2225.7,13.65426527]
[1770005864666,0.1024,2227.9,2225.7,13.65426527]
[1770005865861,0.1024,2227.9,2226.4,0.001]
[1770005866083,1.5798271,2227.9,2226.4,0.001]
[1770005866570,2.5218271,2227.9,2226.4,0.001]
[1770005866761,0.1024,2227.7,2226.4,0.001]
[1770005867941,0.942,2227.9,2226.4,0.001]
[1770005868282,0.942,2228.3,2226.4,0.001]
[1770005868448,13.01617314,2228.2,2226.4,0.001]
[1770005868649,13.14734344,2227.9,2226.4,0.001]
[1770005868949,0.3359703,2227.7,2226.4,0.001]
[1770005869146,0.1024,2227.7,2226.4,0.001]
[1770005869650,0.942,2227.6,2226.4,0.001]
[1770005872787,0.3359703,2227.5,2226.4,0.001]
[1770005873175,0.1024,2227.5,2226.4,0.001]
[1770005873554,0.942,2227.5,2226.4,0.001]
[1770005873756,0.1024,2227.4,2226.4,0.001]
[1770005873960,1.33390231,2227.5,2226.4,0.001]
[1770005874286,0.2335703,2227.3,2226.4,0.001]
[1770005874488,0.2335703,2227.3,2226.1,0.001]
[1770005874489,0.3359703,2227.3,2226.1,0.001]
[1770005874803,14.66891778,2227.3,2225.6,0.001]
[1770005874953,1.52157434,2227.3,2225.6,0.001]
[1770005875154,0.2335703,2227.6,2225.6,0.001]
[1770005875155,12.91377314,2227.8,2225.6,12.81392781]
[1770005875353,1.39581731,2228.1,2225.6,12.81392781]
[1770005875354,0.1024,2227.6,2225.6,12.81392781]
[1770005875554,0.1024,2227.7,2225.6,12.81392781]
[1770005876753,0.1024,2227.8,2225.6,12.81392781]
[1770005879091,0.1024,2228.0,2225.6,12.81392781]
[1770005879290,0.1024,2227.8,2225.9,12.81292781]
[1770005879508,0.0011,2227.6,2225.9,12.81292781]
[1770005879833,0.70504744,2229.3,2226.1,12.81292781]
[1770005879992,0.0011,2230.3,2228.0,12.81292781]
[1770005880186,0.942,2230.2,2228.0,13.75492781]
[1770005880611,0.0011,2228.7,2228.0,13.75492781]
[1770005880809,13.85577314,2230.2,2228.0,13.75492781]
[1770005880996,12.91377314,2230.2,2228.0,13.75492781]
[1770005881404,12.91377314,2230.2,2228.0,0.942]
[1770005881708,12.91377314,2230.0,2228.0,13.75492781]
[1770005881909,1.38568731,2230.1,2228.1,12.81292781]
[1770005882223,0.0011,2230.3,2228.1,12.81292781]
[1770005883923,0.1024,2230.1,2228.1,12.81292781]
[1770005884422,0.0011,2230.3,2228.3,12.81292781]
[1770005884590,0.0011,2230.3,2228.6,12.81292781]
[1770005885199,0.0011,2230.3,2228.7,12.91532781]
[1770005885453,0.0011,2230.5,2228.9,12.81292781]
[1770005885608,0.0011,2230.5,2228.8,0.942]
[1770005885609,0.0011,2230.5,2229.1,12.81292781]
[1770005886505,0.1024,2231.3,2229.2,12.81292781]
[1770005887116,13.01617314,2231.3,2229.2,12.81292781]
[1770005887316,0.1024,2231.1,2229.2,12.81292781]
[1770005887517,0.1024,2231.1,2229.3,1.28129278]
[1770005887718,0.1024,2231.1,2229.3,15.03790096]
[1770005887920,0.0011,2231.4,2229.3,15.03790096]
[1770005888908,0.3359703,2231.2,2229.3,15.03790096]
[1770005889631,0.1024,2231.2,2229.3,15.03790096]
[1770005889802,1.64193211,2231.2,2229.4,0.45572601]
[1770005890003,1.30596181,2231.2,2229.4,14.21233419]
[1770005890236,0.0011,2231.4,2229.4,14.21233419]
[1770005891321,0.1024,2231.3,2229.4,14.21233419]
[1770005891525,12.95611813,2231.1,2229.4,0.45572601]
[1770005891833,0.1024,2231.0,2228.8,14.69860818]
[1770005892233,0.2335703,2230.9,2228.8,14.69860818]
[1770005892543,0.1024,2230.2,2228.3,0.941]
[1770005892715,0.1024,2230.0,2228.8,0.001]
[1770005892912,1.0434,2230.0,2228.8,0.001]
[1770005893107,12.95611813,2230.7,2228.8,0.001]
[1770005893443,0.1024,2230.6,2228.8,0.001]
[1770005893729,0.1024,2230.2,2228.8,0.001]
[1770005894304,12.95611813,2230.4,2228.8,0.001]
[1770005894506,13.29208843,2230.8,2228.8,0.001]
[1770005894738,13.29208843,2230.6,2228.8,0.001]
[1770005894905,13.29208843,2230.6,2228.5,0.001]
[1770005895733,13.29208843,2230.4,2228.5,0.001]
[1770005896034,14.41296932,2230.4,2228.5,0.001]
[1770005896203,13.29208843,2230.4,2228.5,0.001]
[1770005896403,13.29208843,2230.2,2228.5,0.001]
[1770005896626,13.05851813,2229.8,2228.5,0.001]
[1770005897442,0.2335703,2229.7,2228.5,0.001]
[1770005897740,0.1024,2229.7,2228.5,0.001]
[1770005897904,1.0434,2229.7,2228.5,0.001]
[1770005898104,0.2335703,2229.6,2228.5,0.001]
[1770005898403,0.1024,2229.5,2227.7,0.001]
[1770005898604,1.50235181,2229.5,2227.7,0.001]
[1770005899309,1.39995181,2229.5,2227.7,13.75760818]
[1770005899630,0.1024,2230.2,2227.7,13.75760818]
[1770005899839,12.95611813,2230.6,2227.9,13.75660818]
[1770005900001,0.941,2231.0,2228.1,13.85900818]
[1770005900513,12.95611813,2231.6,2228.9,13.75660818]
[1770005900821,5.67747977,2233.1,2229.1,13.75660818]
[1770005900822,0.1024,2231.1,2229.1,13.75660818]
[1770005901000,13.05851813,2231.1,2229.1,13.75660818]
[1770005901200,13.05851813,2231.1,2228.6,13.75660818]
[1770005901410,14.60769827,2231.0,2228.7,1.31490987]
[1770005901603,0.1024,2230.5,2228.6,13.75660818]
[1770005901820,1.0434,2230.5,2228.6,13.75660818]
[1770005902731,0.1024,2230.1,2228.5,0.941]
[1770005902952,0.1024,2229.9,2228.1,13.75660818]
[1770005903158,0.1024,2229.5,2227.8,0.941]
[1770005903309,0.1024,2229.3,2227.8,0.941]
[1770005903509,1.1745703,2229.4,2227.8,0.941]
[1770005903510,0.941,2229.4,2227.8,0.941]
[1770005903702,0.1024,2229.3,2227.8,14.69760818]
[1770005904236,0.1024,2229.1,2227.7,0.001]
[1770005904436,12.95611813,2230.0,2227.7,13.75760818]
[1770005904623,1.29561181,2229.9,2227.8,13.75660818]
[1770005904936,1.29561181,2229.9,2227.7,0.942]
[1770005904937,0.941,2230.6,2228.0,13.75660818]
[1770005905317,13.89711813,2230.6,2228.0,13.75660818]
[1770005905515,13.29208843,2230.1,2227.7,0.942]
[1770005906039,13.29208843,2230.1,2228.0,0.001]
[1770005906210,14.41313004,2230.1,2228.0,0.001]
[1770005906412,13.29208843,2229.9,2228.0,0.001]
[1770005906633,0.3359703,2229.7,2228.0,0.001]
[1770005907636,0.1024,2229.6,2228.0,13.75760818]
[1770005907813,0.2335703,2229.5,2228.0,0.001]
[1770005908623,0.942,2229.7,2228.0,13.75760818]
[1770005908819,0.1024,2230.0,2228.0,13.75760818]
[1770005910137,0.2335703,2229.7,2228.0,0.001]
[1770005910356,0.1024,2229.4,2228.0,0.001]
[1770005910518,1.1755703,2229.3,2228.0,0.001]
[1770005911041,0.1024,2229.2,2228.0,0.001]
[1770005911738,1.1755703,2229.3,2226.4,17.55032661]
[1770005911739,0.2335703,2228.5,2226.4,17.55032661]
[1770005911939,0.1024,2228.6,2226.4,17.55032661]
[1770005911940,0.1024,2228.2,2226.4,13.75660818]
[1770005912121,1.12135583,2229.5,2227.1,13.75660818]
[1770005912319,1.0444,2229.5,2227.1,13.75660818]
[1770005912616,14.00051813,2229.5,2227.1,13.75660818]
[1770005912924,0.1024,2229.4,2227.1,13.75660818]
[1770005913432,0.2335703,2229.3,2227.1,13.75660818]
[1770005913636,0.1024,2229.4,2227.1,13.75660818]
[1770005914528,0.2335703,2229.3,2227.1,13.75660818]
[1770005914731,0.1024,2229.4,2227.1,13.75660818]
[1770005915724,12.95721813,2230.5,2227.8,13.75660818]
[1770005916052,12.95721813,2230.5,2227.7,10.08704752]
[1770005916053,0.0011,2230.5,2228.2,13.75660818]
[1770005916256,0.0011,2230.5,2228.3,13.75660818]
[1770005916424,0.0011,2230.5,2228.5,13.75660818]
[1770005916630,0.1035,2230.5,2228.5,13.75660818]
[1770005916846,0.0011,2230.5,2228.5,13.75660818]
[1770005917139,0.2346703,2230.5,2228.7,13.75660818]
[1770005917346,0.1024,2230.4,2228.7,13.75660818]
[1770005917530,0.1024,2230.4,2228.6,0.942]
[1770005917851,0.2335703,2230.3,2228.6,0.942]
[1770005918057,0.1024,2230.0,2228.0,12.8904019]
[1770005918426,14.9274916,2229.9,2227.9,3.79371843]
[1770005918621,14.9274916,2229.9,2226.9,10.35580929]
[1770005918622,0.2335703,2228.7,2226.9,0.001]
[1770005918827,0.1024,2228.4,2226.9,0.001]
[1770005919026,0.1024,2228.4,2226.9,12.8914019]
[1770005919338,0.1024,2228.0,2226.9,0.001]
[1770005919649,0.1024,2228.0,2227.1,0.001]
[1770005920041,0.1024,2229.1,2227.1,0.001]
[1770005920230,0.1024,2228.5,2227.1,0.001]
[1770005921152,0.1024,2228.1,2227.1,0.001]
[1770005922341,0.1024,2227.9,2226.9,0.001]
[1770005922658,0.2335703,2227.6,2226.0,0.001]
[1770005922859,0.1024,2227.7,2226.0,0.001]